Cogmind - Beta 14 @@@ ROGUE MODE // 2025.03.18 @ 18:56:09 Player: mm79 Result: Self-destructed Performance ------------- Evolutions (2) 1000 Regions Visited (5) 1000 Robots Destroyed (23) 115 Value Destroyed (553) 553 Prototype IDs (27) 540 Alien Tech Used (0) 0 Bonus (288) 288 TOTAL SCORE: 3496 Bonus ------- Aligned with FarCom 300 Friendly Fire -12 Cogmind --------- Core Integrity 550/550 Matter 300/300 Energy 250/250 System Corruption 0% Temperature Cool (0) Movement Treading (160) Location -8/Materials Parts ------- > --- POWER (1) -------- Ion Engine > --- PROPULSION (3) --- Light Treads Light Treads Medium Treads > --- UTILITY (4) ------ Heat Sink Large Storage Unit Hardened Light Armor Plating Shield Generator > --- WEAPON (3) ------- Heavy Assault Rifle Autogun Autogun > --- INVENTORY (15) --- Improved Deuterium Engine Large Matter Pod (150) Structural Scanner Transmission Jammer Hardened Medium Armor Plating Hacking Suite Autogun Autogun Assault Cannon Heavy Assault Cannon Bore Cannon Mini Grenade Launcher Field Lobotomy Kit (5) Great Axe Peak State ------------ > --- POWER ------------ Ion Engine > --- PROPULSION ------- Light Treads Light Treads Medium Treads > --- UTILITY ---------- Heat Sink Large Storage Unit Transmission Jammer Hardened Light Armor Plating > --- WEAPON ----------- Heavy Assault Rifle Autogun Autogun > --- INVENTORY -------- Improved Deuterium Engine Large Matter Pod Structural Scanner Hardened Light Armor Plating Shield Generator Autogun Autogun Bore Cannon Mini Grenade Launcher Field Lobotomy Kit Great Axe [Rating: 24] Favorites ----------- Power Ion Engine Engine Ion Engine Propulsion Light Treads Treads Light Treads Wheel Wheel Utility Large Storage Unit Device Seismic Detector Storage Large Storage Unit Protection Hardened Light Armor Plating Weapon Autogun Energy Gun Medium Laser Ballistic Gun Autogun Build | -11 -10 -10 -10 -9 -8 ------- Run | Yrd Mat Min Exi Min Mat Slots Evolved 4 | . . . . . 4 Power . | . . . . . . Propulsion 1 | . . . . . 1 Utility 2 | . . . . . 2 Weapon 1 | . . . . . 1 Parts Attached 29 | 7 11 3 1 2 5 Power 3 | . 2 1 . . . Engine 3 | . 2 1 . . . Core . | . . . . . . Reactor . | . . . . . . Propulsion 9 | 3 2 2 . 1 1 Treads 5 | 1 1 1 . 1 1 Leg . | . . . . . . Wheel 4 | 2 1 1 . . . Hover . | . . . . . . Flight . | . . . . . . Utility 11 | 2 5 . 1 . 3 Device 7 | 1 3 . . . 3 Storage 2 | 1 1 . . . . Processor . | . . . . . . Hackware . | . . . . . . Protection 2 | . 1 . 1 . . Artifact . | . . . . . . Weapon 6 | 2 2 . . 1 1 Energy Gun 1 | 1 . . . . . Energy Cannon . | . . . . . . Ballistic Gun 5 | 1 2 . . 1 1 Ballistic Cannon . | . . . . . . Launcher . | . . . . . . Special Weapon . | . . . . . . Impact Weapon . | . . . . . . Slashing Weapon . | . . . . . . Piercing Weapon . | . . . . . . Special Melee Weapon . | . . . . . . Unidentified Prototypes . | . . . . . . Parts Lost 5 | . 2 3 . . . Power 1 | . . 1 . . . Propulsion 3 | . 1 2 . . . Utility . | . . . . . . Weapon 1 | . 1 . . . . Highest Loss Streak 2 | . 1 2 . . . To Critical Strikes . | . . . . . . Average Slot Usage (%) 99 | . 99 98 100 100 100 Engine 13 | . 13 13 14 14 9 Treads 19 | . 16 22 14 26 27 Wheel 7 | . 11 4 14 2 . Device 12 | . 13 14 13 . 18 Storage 13 | . 14 14 14 14 9 Protection 2 | . . . . 14 9 Energy Gun 5 | . 12 . . . . Ballistic Gun 22 | . 15 28 28 28 27 Peak Build Rating 24 | 6 10 10 12 14 24 Average Rating 10 | 4 8 9 10 12 22 On Entrance 8 | . 6 10 9 12 14 Naked Turns . | . . . . . . Heaviest Build 42 | 10 31 31 35 36 42 Greatest Support 68 | 16 40 40 10 40 68 Greatest Overweight (x) 3 | . 2 3 3 3 . Average Overweight (x) 1 | . . 1 3 . . Largest Inventory Capacity 15 | 8 15 15 15 15 15 Average Capacity 14 | 7 14 15 15 15 15 Most Carried 15 | 6 15 15 15 15 15 Average Carried 13 | 4 11 14 14 14 14 Final Capacity 15 | 8 15 15 15 15 15 Final Carried 15 | 6 15 14 14 15 15 Class Distribution -------------------- 90% | Mutant 9% | Tank Dominant Class ---------------- Mutant | -10/Materials Mutant | -10/Mines Mutant | -10/Exiles Mutant | -9/Mines Tank | -8/Materials Resources | -11 -10 -10 -10 -9 -8 ----------- Run | Yrd Mat Min Exi Min Mat Matter Collected 1140 | 294 516 218 . 41 71 Remotely . | . . . . . . Salvage Created 838 | 117 448 204 . 58 11 Parts 49 | 10 25 8 . 2 4 Haulers Intercepted 1 | . 1 . . . . Recyclers Shooed . | . . . . . . Parts Field Recycled . | . . . . . . Retrieved Matter . | . . . . . . Parts Self-Destructed . | . . . . . . Prevented . | . . . . . . Kills | -11 -10 -10 -10 -9 -8 ------- Run | Yrd Mat Min Exi Min Mat Combat Hostiles Destroyed 21 | . 11 9 . 1 . Guns 21 | . 11 9 . 1 . Classes Destroyed 9 | 2 3 2 . 1 1 Tunneler 2 | 2 . . . . . Hauler 1 | . 1 . . . . Recycler 2 | 1 . 1 . . . Operator 1 | . . . . . 1 Swarmer 6 | . 3 3 . . . Grunt 8 | . 8 . . . . Sentry 1 | . . . . 1 . Demolisher 2 | . . 2 . . . Assembled 4 | . . 4 . . . Best Kill Streak 5 | 2 3 5 . 1 1 Combat Bots Only 4 | . 3 4 . 1 . Max Kills in Single Turn 1 | 1 1 1 . 1 1 Gunslinging . | . . . . . . Exploded . | . . . . . . Melee . | . . . . . . Uniques/NPCs Destroyed . | . . . . . . Combat | -11 -10 -10 -10 -9 -8 -------- Run | Yrd Mat Min Exi Min Mat Hostile Shots Fired 101 | . 52 45 . 4 . Missed 26 | . 16 10 . . . Damage Taken 1038 | . 420 560 . 58 . Core 126 | . 44 69 . 13 . Absorbed by Shields . | . . . . . . Core Remaining (%) 74 | 100 . . . 49 . Volleys Fired 78 | 8 47 19 . 3 1 Largest 3 | 2 2 2 . 2 3 Hottest 73 | 70 73 43 . 43 69 Shots Fired 152 | 16 89 38 . 6 3 Gun 152 | 16 89 38 . 6 3 Cannon . | . . . . . . Launcher . | . . . . . . Special . | . . . . . . Kinetic 102 | 8 47 38 . 6 3 Thermal 50 | 8 42 . . . . Explosive . | . . . . . . Electromagnetic . | . . . . . . Robot Hit Streak 11 | 3 10 11 . 6 4 Robot Miss Streak 6 | 6 3 1 . 1 . Penetration Max . | . . . . . . Secondary Targets 1 | . . 1 . . . Max Gunslinging Chain 1 | . . 1 . . . Shots Hit Robots 103 | 7 60 28 . 5 3 Core Hits 47 | 4 24 16 . 2 1 Critical Kills . | . . . . . . Critical Parts Destroyed 1 | . 1 . . . . Critical Strikes 4 | 1 3 . . . . Burn 3 | 1 2 . . . . Destroy 1 | . 1 . . . . Melee Attacks . | . . . . . . Impact . | . . . . . . Slashing . | . . . . . . Piercing . | . . . . . . Sneak Attacks . | . . . . . . Combat Hostiles . | . . . . . . Follow-up Attacks . | . . . . . . Damage Inflicted 1469 | 125 810 405 . 84 45 Guns 1469 | 125 810 405 . 84 45 Cannons . | . . . . . . Explosions . | . . . . . . Melee . | . . . . . . Ramming . | . . . . . . Kinetic 990 | 50 406 405 . 84 45 Thermal 479 | 75 404 . . . . Explosive . | . . . . . . Electromagnetic . | . . . . . . Impact . | . . . . . . Slashing . | . . . . . . Piercing . | . . . . . . Highest Corruption . | . . . . . . Average Corruption . | . . . . . . Corruption Purged . | . . . . . . Corruption Blocked . | . . . . . . Overload Shots . | . . . . . . Overflow Damage . | . . . . . . Projectiles . | . . . . . . Explosions . | . . . . . . Melee . | . . . . . . Knockbacks . | . . . . . . Impact . | . . . . . . Kinetic . | . . . . . . Secondary . | . . . . . . Self-Inflicted Damage . | . . . . . . Shots . | . . . . . . Rammed . | . . . . . . Targets Rammed . | . . . . . . Kicked . | . . . . . . Crushed . | . . . . . . Highest Temperature 44 | . 44 34 . 2 6 Average Temperature 11 | . 12 15 . 1 4 Received Heat Transfer 358 | . 180 160 . 18 . Siege Activations . | . . . . . . Robots Corrupted . | . . . . . . Combat Hostiles . | . . . . . . Parts Fried . | . . . . . . Impact Corruptions . | . . . . . . Robots Melted . | . . . . . . Combat Hostiles . | . . . . . . Parts Melted 3 | . 2 . . 1 . Heat Transferred 1628 | 296 1332 . . . . Parts Sabotaged . | . . . . . . Parts Stolen . | . . . . . . Parts Stripped . | . . . . . . Power Chain Reactions . | . . . . . . Alert | -11 -10 -10 -10 -9 -8 ------- Run | Yrd Mat Min Exi Min Mat Peak Influence 264 | 15 264 105 . 20 12 Initial 9 | . 9 5 . . 7 Average 63 | 5 118 18 . 18 11 Maximum Alert Level 1 | . 1 . . . . Low Security (%) 92 | 100 83 100 . 100 100 Level 1 7 | . 16 . . . . Level 2 . | . . . . . . Level 3 . | . . . . . . Level 4 . | . . . . . . Level 5 . | . . . . . . High Security . | . . . . . . Max Security . | . . . . . . Squads Dispatched 2 | . 1 . . 1 . Investigation 1 | . . . . 1 . Extermination . | . . . . . . Reinforcement 1 | . 1 . . . . Assault . | . . . . . . Garrison . | . . . . . . Intercept . | . . . . . . Searches Triggered . | . . . . . . Construction Impeded . | . . . . . . Haulers Reinforced . | . . . . . . Active Scanning Responses . | . . . . . . Cargo Convoy Interrupts . | . . . . . . Stealth | -11 -10 -10 -10 -9 -8 --------- Run | Yrd Mat Min Exi Min Mat Distress Signals 2 | . 2 . . . . Communications Jammed . | . . . . . . Distress Signals . | . . . . . . Times Spotted 50 | . 26 18 . 2 4 Peak Tracking Total 11 | . 5 11 . 2 2 Tactical Retreats 2 | . 2 . . . . Traps | -11 -10 -10 -10 -9 -8 ------- Run | Yrd Mat Min Exi Min Mat Traps Triggered . | . . . . . . Indirectly . | . . . . . . Trap Hack Attempts . | . . . . . . Triggered . | . . . . . . Disarmed . | . . . . . . Reprogrammed . | . . . . . . Reused . | . . . . . . Traps Extracted . | . . . . . . Installed . | . . . . . . Triggered . | . . . . . . Machines | -11 -10 -10 -10 -9 -8 ---------- Run | Yrd Mat Min Exi Min Mat Machines Disabled . | . . . . . . Max in Single Turn . | . . . . . . Machines Repaired . | . . . . . . Machines Dismantled . | . . . . . . Machines Sabotaged . | . . . . . . Overloaded Fab Kills . | . . . . . . Hacking | -11 -10 -10 -10 -9 -8 --------- Run | Yrd Mat Min Exi Min Mat Machines Accessed 11 | . 7 . 1 1 2 Terminals 8 | . 6 . . . 2 Fabricators . | . . . . . . Repair Stations . | . . . . . . Recycling Units 1 | . 1 . . . . Scanalyzers . | . . . . . . Garrison Access . | . . . . . . Total Hacks 38 | . 30 . 1 1 6 Successful 25 | . 19 . 1 1 4 Failed 12 | . 10 . . . 2 Catastrophic . | . . . . . . Database Lockouts 1 | . 1 . . . . Manual 28 | . 21 . 1 . 6 Terminals 32 | . 26 . . . 6 Fabricators . | . . . . . . Repair Stations . | . . . . . . Recycling Units 4 | . 4 . . . . Scanalyzers . | . . . . . . Garrison Access . | . . . . . . Terminal Hacks 10 | . 8 . 1 1 . Robot Analysis 2 | . 2 . . . . Prototype ID Bank 2 | . 2 . . . . Open Door 1 | . . . . 1 . Terminal Index 1 | . 1 . . . . Unreport Threat 1 | . 1 . . . . Locate Traps 1 | . 1 . . . . Hauler Manifests 1 | . 1 . . . . Derelict Proto ID Bank 1 | . . . 1 . . Fabricator Hacks . | . . . . . . Repair Station Hacks . | . . . . . . Recycling Unit Hacks 2 | . 2 . . . . Report Inventory 1 | . 1 . . . . Retrieve Components 1 | . 1 . . . . Scanalyzer . | . . . . . . Garrison Access Hacks . | . . . . . . Unauthorized Hacks 13 | . 9 . . . 4 Terminals 12 | . 8 . . . 4 Assimilate 2 | . 1 . . . 1 Botnet 3 | . 2 . . . 1 Skim 7 | . 5 . . . 2 Fabricators . | . . . . . . Repair Stations . | . . . . . . Recycling Units 1 | . 1 . . . . Reject 1 | . 1 . . . . Scanalyzers . | . . . . . . Garrison Access . | . . . . . . Data Cores Recovered 1 | . . . . . 1 Used 1 | . . . . . 1 Hacking Detections 7 | . 6 . . . 1 Full Trace Events . | . . . . . . Feedback Events . | . . . . . . Feedback Blocked . | . . . . . . Robot Schematics Acquired . | . . . . . . Robots Built . | . . . . . . Authchips . | . . . . . . Time . | . . . . . . Total Robot Build Rating . | . . . . . . Part Schematics Acquired . | . . . . . . Parts Built . | . . . . . . Authchips . | . . . . . . Time . | . . . . . . Total Part Build Rating . | . . . . . . Parts Repaired . | . . . . . . Time . | . . . . . . Parts Recycled . | . . . . . . Recycled Matter . | . . . . . . Retrieved Matter . | . . . . . . Retrieved Components 2 | . 2 . . . . Parts Scanalyzed . | . . . . . . Part Schematics Acquired . | . . . . . . Parts Damaged . | . . . . . . Bothacking | -11 -10 -10 -10 -9 -8 ------------ Run | Yrd Mat Min Exi Min Mat Used RIF Installer . | . . . . . . Robots Hacked . | . . . . . . Non-combat . | . . . . . . Combat . | . . . . . . Robot Hacks Applied . | . . . . . . Relay Couplers Released . | . . . . . . Fabnet Peak Effective % . | . . . . . . Robots Rewired . | . . . . . . Allies Hacked . | . . . . . . Hacks Repelled . | . . . . . . Allies | -11 -10 -10 -10 -9 -8 -------- Run | Yrd Mat Min Exi Min Mat Total Allies 2 | . 1 1 . . . Largest Group 1 | . 1 1 1 . . Highest-Rated Group 31 | . 10 31 31 . . Highest-Rated Ally 31 | . 10 31 31 . . Total Orders 6 | . 4 2 . . . STAY 3 | . 2 1 . . . FOLLOW 3 | . 2 1 . . . Ally Attacks . | . . . . . . Total Damage . | . . . . . . Kills . | . . . . . . Allies Corrupted . | . . . . . . Allies Melted . | . . . . . . Intel | -11 -10 -10 -10 -9 -8 ------- Run | Yrd Mat Min Exi Min Mat Robot Analysis Total 2 | . 2 . . . . Derelict Logs Recovered 1 | . . . . 1 . Drone Launches . | . . . . . . Drone Recoveries . | . . . . . . Exploration | -11 -10 -10 -10 -9 -8 ------------- Run | Yrd Mat Min Exi Min Mat Turns Passed 2234 | 84 899 460 294 273 224 Spaces Moved 1405 | 56 554 270 233 161 131 Core 14 | 14 . . . . . Treads 524 | . 91 164 . 138 131 Legs . | . . . . . . Wheels 867 | 42 463 106 233 23 . Hover . | . . . . . . Flight . | . . . . . . Fastest Speed 50 | 50 80 125 125 125 160 Average Speed 132 | 76 120 147 125 155 160 Slowest Speed 240 | 100 160 240 125 160 160 Overloaded Moves . | . . . . . . Propulsion Burnouts . | . . . . . . Robots Hopped . | . . . . . . Cave-ins Triggered . | . . . . . . Exploration Rate (%) 42 | 5 95 62 41 42 10 Regions Visited 5 Branch Regions 3 Pre-discovered Areas . | . . . . . . Known Exits Taken 1 | . 1 . . . . Unknown Exits Taken 4 | 1 . 1 1 1 . Scrap Searched 2 | . . 1 . 1 . Spaces Dug . | . . . . . . Terrain Destroyed . | . . . . . . Melee . | . . . . . . Projectile . | . . . . . . AOE . | . . . . . . Terrain Rammed . | . . . . . . Walls Destroyed . | . . . . . . Machines Disabled . | . . . . . . Actions | -11 -10 -10 -10 -9 -8 --------- Run | Yrd Mat Min Exi Min Mat Total 1641 | 78 704 297 237 182 143 Wait 61 | . 55 4 . 1 1 Move 1400 | 55 553 269 232 160 131 Hop . | . . . . . . Pick Up 46 | 7 23 2 2 8 4 Fast Attach 9 | 6 2 . . 1 . Attach 13 | 1 4 3 1 . 4 Detach 1 | . 1 . . . . Swap 7 | . 5 . . 1 1 Drop 26 | 1 14 . 2 8 1 Fire 78 | 8 47 19 . 3 1 Melee . | . . . . . . Ram . | . . . . . . Kick . | . . . . . . Crush . | . . . . . . Escape Stasis . | . . . . . . Rewire . | . . . . . . Trap . | . . . . . . Miscellaneous . | . . . . . . Route ------- -11/Scrapyard -10/Materials (discovered 6 exits: *Mat x3 / *Min x2 / Sub) -10/Mines (discovered 2 exits: Mat / *Exi) -10/Exiles -9/Mines -8/Materials History --------- Turn | Location | Event 8 | -11/Scrapyard | Discovered new exit (range 15) 85 | -11/Scrapyard | Entered Materials 157 | -10/Materials | Discovered new exit (range 14) 332 | -10/Materials | Build established: Mutant 428 | -10/Materials | Discovered new exit (range 12) 650 | -10/Materials | Discovered new exit (range 16) 720 | -10/Materials | Central database locked down 763 | -10/Materials | Identified exit to Mines 767 | -10/Materials | Discovered new exit (range 16) 798 | -10/Materials | Identified exit to Subcaves 798 | -10/Materials | Identified exit to Materials 822 | -10/Materials | Learned 2 Mines zone layouts 841 | -10/Materials | Learned location of 1 exit from Recycling 842 | -10/Materials | Learned location of 1 exit from Storage 843 | -10/Materials | Learned location of 1 exit from Storage 852 | -10/Materials | Learned 2 Materials zone layouts 872 | -10/Materials | Learned Materials emergency access door positions 984 | -10/Materials | Entered Mines 984 | -10/Mines | Accompanied by 1 ally 986 | -10/Mines | Met a Derelict bent on vengeance 1205 | -10/Mines | Assembled infested the area 1367 | -10/Mines | Escorted by a lone wolf Derelict 1437 | -10/Mines | Deemed a non-threat by the Exiles lab entrance 1437 | -10/Mines | Discovered new exit (range 5) 1444 | -10/Mines | Entered Exiles 1444 | -10/Exiles | Accompanied by 1 ally 1478 | -10/Exiles | Met 8R-AWN 1499 | -10/Exiles | Met EX-HEX 1534 | -10/Exiles | Met EX-BIN 1548 | -10/Exiles | Aligned with FarCom system 1549 | -10/Exiles | Given EX-Vault access code 1579 | -10/Exiles | Opened EX-Vault 1587 | -10/Exiles | Found Field Lobotomy Kit 1616 | -10/Exiles | Warned to stay clear of 0b10 Research branches 1696 | -10/Exiles | Discovered new exit (range 14) 1738 | -10/Exiles | Left Exiles lab with Field Lobotomy Kit 1738 | -10/Exiles | Entered Mines 1753 | -9/Mines | Joined a pair of Derelicts in attacking an 0b10 outpost 1763 | -9/Mines | Core integrity fell below 50% 1893 | -9/Mines | Met a Derelict shopkeep closing up shop 1938 | -9/Mines | Learned Materials stockpile data 1958 | -9/Mines | Discovered new exit (range 11) 1997 | -9/Mines | A weapon hastily lodged in a ceiling crevice suddenly fell to the ground 2011 | -9/Mines | Entered Materials 2011 | -8/Materials | Evolved 4 slots: Propulsion x1, Utility x2, Weapon x1 2235 | -8/Materials | Self-destructed Last Messages --------------- 02055_ Acquired data core, extracted dynamic key. 02067_ Connecting with Terminal... >>Trojan(Skim) Trojan loaded successfully. Testing... Terminal linked with 1 system. Please expand to 3 more systems! >>Trojan(Botnet) Trojan loaded successfully. Testing... Terminal linked with 0 systems. Awaiting botnet instructions. 02070_ Acquired Hvy. Assault Cannon. 02078_ K-01 Serf collects debris. 02079_ Acquired Assault Cannon. 02083_ K-01 Serf collects debris. 02227_ Acquired 71 matter. 02233_ Dropped Hrd. Light Armor Plating. 02234_ Acquired Hrd. Medium Armor Plating. Map ----- +----------------------------------------------------+ | ???????### ###########???????????????????????????? | | ?????????# #?????????????????????????????????????? | | ?????????# #?????????????????????????????????????? | | ?????????# #?????????????????????????????????????? | | ?????????# ########??????????????????????????????? | | ?????????# ## ##???#######????????????????????? | | ??????????????????????# ############?????????? | | ???????????# ???????# ?????????? | | ???????????# ##### T ?????????? | | ?????????# ?????????? | | ??#??????# !###+#????????????????? | | ? #?????????############ = ##????????????????????? | | ? #?????????????# =#!%=#?????????????????????? | | ? #?????????????# "S # ! #?????????????????????? | | ? #???????????### """ + #?????????????????????? | | #???????????? + "" # #?????????????????????? | | +?????????????# # #?????????????????????? | | #??????#??????# # #?????????????????????? | | ####+### #####+##########?????????????????????? | | #?????????????????????? | | ### = #?????????????????????? | | ####+#####????# / = #####?????????????????? | | #????# % +?????????????????? | | #????# ##+#####?????????????????? | | / ###### ]] # #??????????????????? | | ! + #@ #??????????????????? | | ###### #! #??????????????????? | | """ """ #????# # % #??????????????????? | | """ """ #????#####"T"### #??????????????????? | | """ """ #????????#####?# #??????????????????? | | ##########??????????????#######??????????????????? | | | | | | | | | | | | | | | | | | | | | | | | | | | | | | | | | | | | | | | +----------------------------------------------------+ Best States ------------- Heat Dissipation 41 Energy Generation 10 Energy Capacity 250 Matter Stores 300 Matter Capacity 300 Sight Range 16 Terrain Scan Density 10 Jamming Range 12 Armor Coverage 150 Weapon Shielding 33 Evasion (%) 50 Recoil Reduction 3 Item Schematics ----------------- None Robot Schematics ------------------ None Fabricated ------------ Nothing Alien Tech Used ----------------- None Achievements -------------- None Challenges ------------ None Game ------ Seed SpectralMeleeAmplifier Manual? 0 Play Time 00:46:52 Cumulative 61.6 hours Start 2025.03.15 @ 15:46:24 End 2025.03.18 @ 18:56:09 Sessions 3 Manual Loads 0 Difficulty Rogue Special Mode None Game No. 46 Rogue 46 Adventurer 0 Explorer 0 Win Type - Total 0 Types 0/0/0/0/0/0/0/0/0 Lore% 12 Gallery% 35 Achievement% 31 Wizard Run 0 Options --------- Layout 1 ASCII 0 Keyboard 0 Movement Mouse Keybinds 0 Fullscreen 1 Font 24/Smallcaps Map View 50x35 Zoom Use 0% Tactical HUD 1 Map Filters NONE Filters NONE Steam 0 RUN: 21a5710e-8ecb-452d-9de9-297ece9a8a49